fUSD/lending_fUSD_20240914
["ID","MTS","AMOUNT","RATE_DAILY","PERIOD"]
[338148455,1726312232888,-151.0,0.0001499,2]
[338148456,1726312232898,-151.0,0.0001499,2]
[338148457,1726312232907,-290.843158,0.0001499,2]
[338148458,1726312232916,-151.0,0.0001499,2]
[338148459,1726312232928,-158.937306,0.0001499,2]
[338148460,1726312232938,-151.0,0.0001499,2]
[338148461,1726312232947,-151.0,0.0001499,2]
[338148462,1726312232957,-151.0,0.0001499,2]
[338148463,1726312232966,-151.0,0.0001499,2]
[338148464,1726312232976,-151.0,0.0001499,2]
[338148465,1726312232986,-305.29042,0.0001499,2]
[338148466,1726312232995,-305.29042,0.0001499,2]
[338148467,1726312233006,-305.29042,0.0001499,2]
[338148468,1726312233017,-305.29042,0.0001499,2]
[338148469,1726312233027,-151.0,0.0001499,2]
[338148470,1726312233036,-151.0,0.0001499,2]
[338148471,1726312233046,-151.0,0.0001499,2]
[338148472,1726312233056,-161.141264,0.0001499,2]
[338148473,1726312233065,-151.0,0.0001499,2]
[338148474,1726312233076,-151.0,0.0001499,2]
[338148475,1726312233085,-151.0,0.0001499,2]
[338148476,1726312233095,-151.0,0.0001499,2]
[338148477,1726312233105,-151.0,0.0001499,2]
[338148478,1726312233115,-243285.072689,0.0001499,3]
[338148479,1726312233125,-151.0,0.0001499,2]
[338148480,1726312233135,-151.0,0.0001499,2]
[338148481,1726312233144,-151.0,0.0001499,2]
[338148482,1726312233154,-151.0,0.0001499,2]
[338148483,1726312233163,-151.0,0.0001499,2]
[338148484,1726312233173,-151.0,0.0001499,2]
[338148485,1726312233182,-151.0,0.0001499,2]
[338148486,1726312233192,-151.0,0.0001499,2]
[338148487,1726312233201,-181.376128,0.0001499,2]
[338148488,1726312233211,-588.1991384,0.00014994,2]
[338148489,1726312233220,-2455.647423,0.00014994,2]
[338148490,1726312233230,-70311.56520569,0.00014996,5]
[338148491,1726312233239,-151.0,0.00014996,2]
[338148492,1726312233249,-152.299202,0.00014996,2]
[338148493,1726312233259,-151.0,0.00014996,2]
[338148494,1726312233268,-198.616847,0.00014996,2]
[338148495,1726312233278,-151.0,0.00014996,2]
[338148496,1726312233287,-151.0,0.00014996,2]
[338148497,1726312233296,-151.0,0.00014996,2]
[338148498,1726312233306,-151.0,0.00014996,2]
[338148499,1726312233316,-151.0,0.00014996,2]
[338148500,1726312233326,-151.0,0.00014996,2]
[338148501,1726312233335,-151.0,0.00014996,2]
[338148502,1726312233344,-151.0,0.00014996,2]
[338148503,1726312233353,-151.0,0.00014996,2]
[338148504,1726312233363,-151.0,0.00014996,2]
[338148505,1726312233372,-917.92596,0.00014996,2]
[338148506,1726312233381,-917.92596,0.00014996,2]
[338148507,1726312233390,-151.0,0.00014996,2]
[338148508,1726312233400,-151.0,0.00014996,2]
[338148509,1726312233409,-151.0,0.00014996,2]
[338148510,1726312233418,-151.0,0.00014996,2]
[338148511,1726312233427,-151.0,0.00014996,2]
[338148512,1726312233437,-154.336273,0.00014996,2]
[338148513,1726312233448,-151.0,0.00014996,2]
[338148514,1726312233457,-151.0,0.00014996,2]
[338148515,1726312233466,-151.0,0.00014996,2]
[338148516,1726312233476,-305.29042,0.00014996,2]
[338148517,1726312233485,-305.29042,0.00014996,2]
[338148518,1726312233494,-151.0,0.00014996,2]
[338148519,1726312233504,-152.096882,0.00014996,2]
[338148520,1726312233513,-151.0,0.00014996,2]
[338148521,1726312233523,-151.0,0.00014996,2]
[338148522,1726312233532,-151.0,0.00014996,2]
[338148523,1726312233541,-151.0,0.00014996,2]
[338148524,1726312233551,-151.0,0.00014996,2]
[338148525,1726312233560,-285.228694,0.00014996,2]
[338148526,1726312233569,-151.0,0.00014996,2]
[338148527,1726312233579,-151.0,0.00014996,2]
[338148528,1726312233588,-151.0,0.00014996,2]
[338148529,1726312233597,-151.0,0.00014996,2]
[338148530,1726312233607,-151.0,0.00014996,2]
[338148531,1726312233616,-151.0,0.00014996,2]
[338148532,1726312233626,-151.0,0.00014996,2]
[338148533,1726312233635,-151.0,0.00014996,2]
[338148534,1726312233645,-516.0,0.00015,2]
[338148535,1726312233654,-10150.36443529,0.00015,2]
[338148536,1726312233664,-84386.23485639,0.00015,2]
[338148537,1726312233678,-1076.67019596,0.00015,2]
[338148538,1726312233689,-7532.88863808,0.00015,2]
[338148539,1726312233700,-377.277724,0.00015,2]
[338148540,1726312233749,-689.30241408,0.00015,2]
[338148541,1726312233761,-267111.47002833,0.00015,2]
[338148544,1726312237859,-485.28526725,0.00015,2]
[338148545,1726312237871,-335.76750053,0.00015,2]
[338148546,1726312237882,-28686.90924801,0.00015,2]
[338148548,1726312237896,-279.62,0.00015,2]
[338148549,1726312237938,-2286.65526696,0.00015,2]
[338148550,1726312237950,-7807.49218914,0.00015,2]
[338148551,1726312237974,-688.5,0.00015,2]
[338148552,1726312237985,-1018.81330539,0.00015,2]
[338148553,1726312238121,-4723.52338797,0.00015,2]
[338148554,1726312238132,-503.24426283,0.00015,2]
[338148555,1726312238143,-903.83149778,0.00015,2]
[338148556,1726312238154,-1738.52929993,0.00015,2]
[338148557,1726312238166,-987.54270914,0.00015,2]
[338148558,1726312238180,-362.78211077,0.00015,2]
[338148559,1726312238191,-14103.48224663,0.00015,2]
[338148560,1726312238202,-1283.24717417,0.00015,2]
[338148565,1726312239982,-213463.34793062,0.00015,2]
[338148566,1726312240039,-60816.70297925,0.00015,2]
[338148567,1726312240048,-53589.38128956,0.00015,2]
[338148568,1726312240078,-732.69851265,0.00015,2]
[338148569,1726312240090,-505.66665384,0.00015,2]
[338148570,1726312240101,-453.16590618,0.00015,2]
[338148576,1726312240395,-505.3046845,0.00015,2]
[338148578,1726312240407,-2809.89847193,0.00015,2]
[338148581,1726312240418,-521.59343028,0.00015,2]
[338148586,1726312240464,-641.30813083,0.00015,2]
[338148637,1726312242960,-1435.8697,0.00014834,2]
[338148638,1726312242970,-328.18982613,0.0001489,2]
[338148639,1726312242981,-10850.09317943,0.00015,2]
[338148640,1726312243090,-207.9252007,0.00014994,2]
[338148641,1726312243100,-24313.56038119,0.00015,2]
[338148644,1726312246288,-328.18982613,0.000149,2]
[338148645,1726312246299,-841.56029501,0.00015,2]
[338148653,1726312632963,154.03,0.00010959,2]
[338148654,1726312675822,530.35,0.00011536,2]
[338148656,1726312838068,1050.0,0.00011,2]
[338148657,1726313225376,503.83,0.00011477,2]
[338148675,1726313432000,-333.75292929,0.00013089,2]
[338148677,1726313432010,-158.18,0.00013143,2]
[338148678,1726313432019,-158.18,0.00013179,2]
[338148679,1726313432029,-158.18,0.00013179,2]
[338148680,1726313432039,-300.0,0.00013188,2]
[338148681,1726313432048,-392.50518151,0.00013189,2]
[338148682,1726313432059,-303.4456781,0.00013189,2]
[338148683,1726313432400,-2900.0,0.00013189,2]
[338148685,1726313432424,-5963.42934039,0.00013189,2]
[338148687,1726313432434,-158.18,0.00013279,2]
[338148689,1726313432443,-158.18,0.00013279,2]
[338148691,1726313432454,-23890.0,0.00013289,2]
[338148693,1726313432465,-255.0,0.00013294,2]
[338148695,1726313432474,-250.0,0.00013328,2]
[338148697,1726313432483,-156.69,0.0001334,2]
[338148699,1726313432492,-200.0,0.00013355,2]
[338148700,1726313432501,-156.69,0.00013362,2]
[338148702,1726313432511,-1000.0,0.00013363,2]
[338148704,1726313432520,-155.76,0.00013365,2]
[338148705,1726313432529,-250.0,0.00013379,2]
[338148707,1726313432540,-243.41,0.0001338,2]
[338148709,1726313432550,-2491.72,0.0001338,2]
[338148710,1726313432559,-8271.22,0.0001338,2]
[338148711,1726313432568,-156.69,0.00013384,2]
[338148712,1726313432577,-438.94,0.00013384,2]
[338148713,1726313432592,-999.99,0.00013384,2]
[338148714,1726313432602,-156.69,0.00013406,2]
[338148715,1726313432611,-962.47,0.00013444,2]
[338148716,1726313432621,-250.0,0.0001346,2]
[338148717,1726313432630,-150.0,0.00013488,2]
[338148719,1726313432639,-150.0,0.00013488,2]
[338148721,1726313432649,-150.0,0.00013488,2]
[338148722,1726313432658,-150.0,0.00013488,2]
[338148723,1726313432667,-150.0,0.00013488,2]
[338148724,1726313432676,-150.22,0.00013501,2]
[338148725,1726313432685,-150.0,0.00013699,2]
[338148726,1726313432695,-503.83,0.00013741,2]
[338148727,1726313432704,-150.0,0.00013862,2]
[338148728,1726313432714,-900.0,0.000139,5]
[338148729,1726313432724,-707.64733332,0.00013993,2]
[338148730,1726313432733,-1800.0,0.00014,5]
[338148731,1726313432743,-2700.0,0.000141,5]
[338148732,1726313432752,-150.0,0.00014155,2]
[338148733,1726313432762,-171.33,0.00014156,2]
[338148734,1726313432771,-3700.0,0.000142,5]
[338148735,1726313432781,-268.53,0.00014234,2]
[338148736,1726313432790,-150.0,0.00014237,2]
[338148737,1726313432800,-150.0,0.00014237,2]
[338148738,1726313432809,-4600.0,0.000143,5]
[338148739,1726313432819,-900.0,0.000144,5]
[338148740,1726313432830,-420.0,0.0001446,2]
[338148741,1726313432840,-900.0,0.000145,5]
[338148742,1726313432849,-900.0,0.000146,5]
[338148743,1726313432859,-150.0,0.00014612,2]
[338148744,1726313432868,-150.0,0.00014612,2]
[338148745,1726313432878,-900.0,0.000147,5]
[338148746,1726313432887,-2037.61716267,0.0001479,2]
[338148747,1726313432896,-166.037402,0.00014795,2]
[338148748,1726313432906,-3000.0,0.000148,2]
[338148749,1726313432916,-1300.0,0.000148,5]
[338148750,1726313432926,-998.3968,0.0001488,2]
[338148751,1726313432935,-372.441,0.0001488,2]
[338148752,1726313432945,-26271.2217,0.0001488,2]
[338148753,1726313432955,-1439.358,0.0001488,2]
[338148754,1726313432964,-971.0,0.0001489,2]
[338148755,1726313432974,-201.2302,0.0001489,2]
[338148756,1726313432983,-2500.0,0.0001489,2]
[338148757,1726313432993,-276.763,0.00014893,2]
[338148758,1726313433002,-556.72538366,0.00014893,2]
[338148759,1726313433011,-164.99535302,0.00014894,2]
[338148760,1726313433020,-556.72538366,0.00014894,2]
[338148761,1726313433031,-556.72538366,0.00014896,2]
[338148762,1726313433040,-556.72538366,0.00014897,2]
[338148763,1726313433050,-556.72538366,0.00014898,2]
[338148764,1726313433059,-556.72538366,0.00014899,2]
[338148765,1726313433069,-556.72538366,0.000149,2]
[338148766,1726313433079,-255.0,0.00014956,2]
[338148767,1726313433088,-151.5,0.0001498,2]
[338148768,1726313433098,-150.0,0.00014986,2]
[338148769,1726313433108,-150.0,0.00014986,2]
[338148770,1726313433118,-150.0,0.00014986,2]
[338148771,1726313433128,-7780.74502298,0.0001499,3]
[338148772,1726313433140,-554.04576987,0.0001499,3]
[338148773,1726313433152,-459.65450438,0.0001499,3]
[338148774,1726313433168,-765.29022052,0.0001499,3]
[338148775,1726313433232,-42811.29285275,0.0001499,3]
[338148776,1726313433242,-230432.52483,0.0001499,3]
[338148777,1726313433252,-17311.18231712,0.0001499,3]
[338148778,1726313433264,-448.12958754,0.0001499,3]
[338148781,1726313438141,-1173.98706814,0.00013043,2]
[338148782,1726313438152,-2065.88764727,0.00013043,2]
[338148783,1726313438162,-1285.24018095,0.0001499,3]
[338148784,1726313438173,-2082.2186989,0.0001499,3]
[338148785,1726313438184,-2583.58712451,0.0001499,3]
[338148786,1726313438196,-1982.8263496,0.0001499,3]
[338148787,1726313438207,-1037.56343415,0.0001499,3]
[338148788,1726313438222,-290.305015,0.0001499,3]
[338148789,1726313438291,-481.27860106,0.0001499,3]
[338148790,1726313438402,-2248.25259335,0.0001499,3]
[338148791,1726313438414,-8284.18896675,0.0001499,3]
[338148792,1726313438425,-13816.91598433,0.0001499,3]
[338148793,1726313438436,-667.76472037,0.0001499,3]
[338148794,1726313438448,-326.82220256,0.0001499,3]
[338148795,1726313438459,-1109.76612253,0.0001499,3]
[338148796,1726313438470,-3212.85344129,0.0001499,3]
[338148797,1726313438481,-888.03309248,0.0001499,3]
[338148800,1726313440132,-12240.78132824,0.0001499,3]
[338148801,1726313440375,-1027.88560271,0.0001499,3]
[338148802,1726313440388,-6052.1147381,0.0001499,3]
[338148803,1726313440460,-690.03708721,0.0001499,3]
[338148804,1726313440472,-110524.25498921,0.0001499,3]
[338148805,1726313440483,-39982.21591552,0.0001499,3]
[338148806,1726313440495,-119614.76461552,0.0001499,3]
[338148807,1726313440504,-166.1143083,0.00014994,2]
[338148808,1726313440514,-116466.69076559,0.00015,2]
[338148809,1726313440526,-1323.72601942,0.00015,2]
[338148825,1726313440674,-380.32581312,0.00015,2]
[338148828,1726313440686,-1366.20236138,0.00015,2]
[338148830,1726313440700,-299.1093805,0.00015,2]
[338148833,1726313440713,-505.161,0.00015,2]
[338148867,1726313443083,-353.4100011,0.00015,2]
[338148872,1726313443203,-3898.14041674,0.00015,2]
[338148873,1726313443214,-302.0,0.00015,2]
[338148874,1726313443226,-12984.06572285,0.00015,2]
[338148875,1726313443237,-13617.53172535,0.00015,2]
[338148876,1726313443260,-9521.52102756,0.00015,2]
[338148880,1726313443488,-9219.75395458,0.00015,2]
[338148882,1726313443497,-67023.33867515,0.00015,2]
[338148884,1726313443508,-744.5,0.00015,2]
[338148897,1726313446149,-565.134902,0.00015,2]
[338148898,1726313446262,-399.65030204,0.00015,2]
[338148899,1726313446274,-1103.74276025,0.00015,2]
[338148900,1726313446285,-2470.79766762,0.00015,2]
[338148901,1726313446295,-263.86078829,0.00015,2]
[338148902,1726313446306,-5948.71108862,0.00015,2]
[338148903,1726313446459,-949.65,0.00015,2]
[338148905,1726313446470,-2318.59106477,0.00015,2]
[338148907,1726313738149,536.06,0.00011756,2]
[338148908,1726313792919,281.19,0.00010959,2]
[338148913,1726314312774,548.94,0.00011645,2]
[338148914,1726314374199,180.93,0.00010959,2]
[338148915,1726314460626,500.0,0.00028,120]
[338148916,1726314460898,500.0,0.00028,120]
[338148917,1726314461159,500.0,0.00028,120]
[338148918,1726314461427,500.0,0.00028,120]
[338148919,1726314461681,500.00000001,0.00028,120]
[338148926,1726314632362,-160.63,0.00013368,2]
[338148927,1726314632371,-1641.50514706,0.00013388,2]
[338148928,1726314632380,-250.0,0.00013429,2]
[338148929,1726314632389,-4458.76343394,0.00013478,2]
[338148930,1726314632400,-1491.82014959,0.00013478,2]
[338148931,1726314632422,-770.30325478,0.00013478,2]
[338148932,1726314632431,-160.63,0.00013478,2]
[338148933,1726314632440,-150.0,0.00013488,2]
[338148934,1726314632449,-150.0,0.00013488,2]
[338148935,1726314632458,-150.0,0.00013488,2]
[338148936,1726314632467,-150.0,0.00013488,2]
[338148937,1726314632476,-150.00000001,0.00013488,2]
[338148938,1726314632485,-250.0,0.00013541,2]
[338148939,1726314632494,-150.22,0.00013559,2]
[338148940,1726314632503,-160.63,0.00013559,2]
[338148941,1726314632512,-160.63,0.00013559,2]
[338148942,1726314632522,-160.63,0.00013559,2]
[338148944,1726314632532,-160.63,0.00013559,2]
[338148946,1726314632542,-160.63,0.00013559,2]
[338148948,1726314632551,-160.63,0.00013559,2]
[338148949,1726314632559,-160.63,0.00013559,2]
[338148950,1726314632568,-160.63,0.00013559,2]
[338148951,1726314632577,-250.0,0.00013567,2]
[338148952,1726314632586,-6585.73,0.00013567,2]
[338148953,1726314632596,-6018.74747457,0.00013569,2]
[338148954,1726314632607,-324.2343219,0.00013569,2]
[338148955,1726314632618,-17547.01820353,0.00013569,2]
[338148956,1726314632626,-959.33,0.00013582,2]
[338148957,1726314632635,-150.0,0.00013583,2]
[338148958,1726314632644,-215.3,0.00013606,2]
[338148959,1726314632653,-499.99,0.00013673,2]
[338148960,1726314632661,-171.33,0.00013679,2]
[338148961,1726314632670,-500.0,0.00013683,2]
[338148962,1726314632679,-153.71,0.00013694,2]
[338148963,1726314632688,-150.0,0.00013699,2]
[338148964,1726314632698,-1000.0,0.00013745,2]
[338148965,1726314632707,-150.0,0.00013862,2]
[338148966,1726314632716,-200.0,0.000139,5]
[338148967,1726314632725,-548.94,0.00013909,2]
[338148968,1726314632735,-500.0,0.0001395,2]
[338148969,1726314632744,-500.0,0.00014,5]
[338148970,1726314632753,-422.47,0.00014055,2]
[338148971,1726314632762,-752.82,0.00014055,2]
[338148972,1726314632771,-422.47,0.00014055,2]
[338148973,1726314632781,-752.82,0.00014055,2]
[338148974,1726314632790,-422.2,0.00014055,2]
[338148975,1726314632799,-752.37,0.00014055,2]
[338148976,1726314632808,-800.0,0.000141,5]
[338148977,1726314632817,-1064.68,0.00014192,2]
[338148978,1726314632827,-449.0,0.00014192,2]
[338148979,1726314632838,-150.0,0.00014192,2]
[338148980,1726314632847,-217.85,0.00014192,2]
[338148981,1726314632856,-150.0,0.00014192,2]
[338148982,1726314632865,-427.85,0.00014192,2]
[338148983,1726314632874,-357.74,0.00014192,2]
[338148984,1726314632883,-150.0,0.00014192,2]
[338148985,1726314632892,-150.0,0.00014192,2]
[338148986,1726314632901,-300.0,0.00014192,2]
[338148987,1726314632910,-427.85,0.00014192,2]
[338148988,1726314632920,-150.0,0.00014192,2]
[338148989,1726314632929,-150.0,0.00014192,2]
[338148990,1726314632938,-357.74,0.00014192,2]
[338148991,1726314632948,-150.0,0.00014192,2]
[338148992,1726314632957,-150.0,0.00014192,2]
[338148993,1726314632966,-150.0,0.00014192,2]
[338148994,1726314632975,-427.58,0.00014192,2]
[338148995,1726314632984,-150.0,0.00014192,2]
[338148996,1726314632995,-150.0,0.00014192,2]
[338148997,1726314633004,-150.0,0.00014192,2]
[338148998,1726314633014,-357.5,0.00014192,2]
[338148999,1726314633023,-150.0,0.00014192,2]
[338149000,1726314633033,-150.0,0.00014192,2]
[338149001,1726314633043,-1100.0,0.000142,5]
[338149002,1726314633052,-150.0,0.00014237,2]
[338149003,1726314633061,-150.0,0.00014237,2]
[338149004,1726314633071,-150.0,0.00014237,2]
[338149005,1726314633081,-170.76,0.0001425,2]
[338149006,1726314633091,-150.0,0.00014269,2]
[338149007,1726314633100,-1400.0,0.000143,5]
[338149008,1726314633109,-200.0,0.000144,5]
[338149009,1726314633118,-200.0,0.000145,5]
[338149010,1726314633127,-500.0,0.00014521,2]
[338149011,1726314633137,-200.0,0.000146,5]
[338149012,1726314633146,-150.0,0.00014612,2]
[338149013,1726314633155,-395.15499413,0.00014694,2]
[338149014,1726314633164,-200.0,0.000147,5]
[338149015,1726314633173,-1500.0,0.00014739,2]
[338149016,1726314633182,-261.77419336,0.00014766,2]
[338149017,1726314633192,-150.0,0.00014787,2]
[338149018,1726314633201,-1500.0,0.00014789,2]
[338149019,1726314633211,-260.8449,0.0001479,2]
[338149020,1726314633221,-150.0,0.000148,2]
[338149021,1726314633230,-787.45959921,0.000148,2]
[338149022,1726314633240,-800.0,0.000148,5]
[338149023,1726314633249,-150.0,0.00014801,2]
[338149024,1726314633259,-150.0,0.00014803,2]
[338149025,1726314633268,-150.0,0.00014805,2]
[338149026,1726314633278,-787.45959921,0.00014811,2]
[338149027,1726314633288,-787.45959921,0.00014822,2]
[338149028,1726314633297,-787.45959921,0.00014833,2]
[338149029,1726314633310,-150.0,0.0001484,2]
[338149030,1726314633319,-150.0,0.00014844,2]
[338149031,1726314633329,-787.45959921,0.00014844,2]
[338149032,1726314633339,-1816.60012,0.0001485,2]
[338149033,1726314633348,-787.45959921,0.00014856,2]
[338149034,1726314633358,-448.0,0.00014856,2]
[338149035,1726314633367,-1547.0,0.00014856,2]
[338149036,1726314633377,-624.0,0.00014856,2]
[338149037,1726314633386,-1261.0,0.00014856,2]
[338149038,1726314633396,-553.0,0.00014856,2]
[338149039,1726314633405,-1901.0,0.00014856,2]
[338149040,1726314633414,-1120.0,0.00014856,2]
[338149041,1726314633425,-248.0,0.00014856,2]
[338149042,1726314633435,-806.0,0.00014856,2]
[338149043,1726314633444,-1922.0,0.00014856,2]
[338149044,1726314633454,-3344.0,0.00014856,2]
[338149045,1726314633463,-5861.0,0.00014856,2]
[338149046,1726314633473,-150.0,0.00014856,2]
[338149047,1726314633483,-1146.0,0.00014856,2]
[338149048,1726314633492,-9311.0,0.00014856,2]
[338149049,1726314633502,-787.45959921,0.00014867,2]
[338149050,1726314633512,-150.0,0.00014873,2]
[338149051,1726314633521,-787.45959921,0.00014878,2]
[338149052,1726314633535,-150.0,0.00014878,2]
[338149053,1726314633548,-787.45959921,0.00014889,2]
[338149054,1726314633558,-1079.3456,0.0001489,2]
[338149055,1726314633567,-17336.6162882,0.0001489,3]
[338149056,1726314633576,-331.23235818,0.0001489,2]
[338149057,1726314633586,-35091.6249,0.0001489,2]
[338149058,1726314633595,-1259.9875,0.0001489,2]
[338149059,1726314633604,-1000.0,0.0001489,2]
[338149060,1726314633613,-3124.069,0.0001489,2]
[338149061,1726314633622,-166.544,0.00014893,2]
[338149062,1726314633632,-318.316,0.00014893,2]
[338149063,1726314633641,-1631.6351,0.000149,2]
[338149064,1726314633651,-300.0,0.000149,7]
[338149065,1726314633662,-7500.0,0.000149,2]
[338149066,1726314633673,-344.56344084,0.000149,2]
[338149067,1726314633684,-787.45959921,0.000149,2]
[338149068,1726314633695,-331.23235817,0.000149,2]
[338149069,1726314633705,-164.67766966,0.000149,2]
[338149070,1726314633715,-150.0,0.00014911,2]
[338149071,1726314633725,-150.0,0.00014926,2]
[338149072,1726314633735,-150.0,0.00014928,2]
[338149073,1726314633744,-1500.0,0.0001493,2]
[338149074,1726314633754,-158.744606,0.00014973,2]
[338149075,1726314633763,-159.09601474,0.00014973,2]
[338149076,1726314633772,-200.48697453,0.00014973,2]
[338149077,1726314633783,-160.23910333,0.00014973,2]
[338149078,1726314633793,-150.20037164,0.00014973,2]
[338149079,1726314633803,-452.57062921,0.00014973,2]
[338149080,1726314633812,-495.60950826,0.00014973,2]
[338149081,1726314633823,-500.0,0.00014973,2]
[338149082,1726314633834,-17336.6162882,0.0001498,3]
[338149083,1726314633847,-151.21,0.0001498,2]
[338149084,1726314633857,-64178.80817844,0.0001498,3]
[338149085,1726314634069,-41465.56189589,0.0001498,3]
[338149086,1726314634108,-554.37197394,0.0001498,3]
[338149087,1726314634131,-1728.39618865,0.0001498,3]
[338149088,1726314634142,-1559.20212666,0.0001498,3]
[338149089,1726314634154,-538.88,0.0001498,3]
[338149090,1726314634193,-3839.44275338,0.0001498,3]
[338149091,1726314634205,-347.40099992,0.0001498,3]
[338149092,1726314634216,-1218.07657921,0.0001498,3]
[338149093,1726314634250,-1112.20431424,0.0001498,3]
[338149096,1726314638256,-1079.0,0.00014856,2]
[338149098,1726314638266,-5754.76169356,0.0001498,3]
[338149099,1726314638279,-6050.72207205,0.0001498,3]
[338149100,1726314638292,-1606.73019346,0.0001498,3]
[338149101,1726314638364,-329.5347003,0.0001498,3]
[338149102,1726314638418,-1636.83878557,0.0001498,3]
[338149103,1726314638430,-968.2018973,0.0001498,3]
[338149104,1726314638585,-4350.35176722,0.0001498,3]
[338149113,1726314640202,-537.80351183,0.0001498,3]
[338149114,1726314640270,-9583.94881738,0.0001498,3]
[338149115,1726314640280,-48488.5398143,0.0001498,3]
[338149116,1726314640289,-150.0,0.00014986,2]
[338149117,1726314640297,-150.0,0.00014986,2]
[338149118,1726314640309,-150.0,0.00014986,2]
[338149119,1726314640319,-292.38079082,0.00014986,2]
[338149120,1726314640328,-168.71903338,0.00014988,2]
[338149121,1726314640336,-78014.7732967,0.0001499,3]
[338149122,1726314640346,-84854.944675,0.0001499,3]
[338149123,1726314640355,-206076.294211,0.0001499,3]
[338149124,1726314640364,-151.0,0.0001499,2]
[338149125,1726314640373,-253.847524,0.0001499,2]
[338149126,1726314640382,-151.0,0.0001499,2]
[338149127,1726314640391,-151.0,0.0001499,2]
[338149128,1726314640400,-151.0,0.0001499,2]
[338149129,1726314640409,-151.0,0.0001499,2]
[338149130,1726314640418,-151.21,0.0001499,2]
[338149131,1726314640427,-151.21,0.0001499,2]
[338149132,1726314640436,-180.8681333,0.00014993,2]
[338149133,1726314640445,-2096.103194,0.00014993,2]
[338149134,1726314640454,-1246.61675584,0.00014999,2]
[338149135,1726314640463,-527.0,0.00015,2]
[338149136,1726314640472,-169079.88900501,0.00015,2]
[338149137,1726314640482,-2923542.58232359,0.00015,2]
[338149138,1726314640491,-753.95246634,0.00015,2]
[338149139,1726314640500,-2051451.17881046,0.00015,2]
[338149140,1726314640509,-2884059.96956757,0.00015,2]
[338149141,1726314640518,-1314490.61096119,0.00015,2]
[338149142,1726314640531,-88814.39773596,0.00015,2]
[338149143,1726314640542,-1357.78580478,0.00015,2]
[338149144,1726314640553,-1428.791,0.00015,2]
[338149145,1726314640564,-2590.55437159,0.00015,2]
[338149212,1726314641506,-401927.27655257,0.00015,2]
[338149213,1726314641520,-669587.8581987,0.00015,2]
[338149214,1726314641608,1050.0,0.00011,2]
[338149228,1726314643716,-1100.0,0.00013,2]
[338149230,1726314643726,-151.0,0.0001499,2]
[338149232,1726314643736,-4865.05990643,0.00015,2]
[338149233,1726314646520,-503.29651049,0.00015,2]
[338149234,1726314646625,-84748.03153974,0.00015,2]
[338149282,1726314807473,531.24,0.00012037,2]
[338149283,1726314811804,4000.0,0.00028,120]
[338149288,1726314985646,181.03,0.00010959,2]
[338149292,1726315342006,504.67,0.00011689,2]
[338149293,1726315375856,500.0,0.00028,120]
[338149294,1726315376261,500.0,0.00028,120]
[338149295,1726315376513,646.66,0.00028,120]
[338151585,1726315829038,154.03,0.00010959,2]
[338151586,1726315831605,-1329.782875,0.00013411,2]
[338151587,1726315831615,-179.99297769,0.00013479,2]
[338151588,1726315831623,-150.0,0.00013488,2]
[338151589,1726315831633,-150.0,0.00013488,2]
[338151590,1726315831643,-150.0,0.00013488,2]
[338151591,1726315831652,-150.0,0.00013488,2]
[338151592,1726315831661,-150.22,0.00013492,2]
[338151593,1726315831670,-250.0,0.00013493,2]